bitfinex/quotes_SOLUSD_20250622
["timestamp","ask_amount","ask_price","bid_price","bid_amount"]
[1750565306933,0.5911735,135.44,135.42,15.44627866]
[1750565307344,0.5911735,135.44,135.43,26.0]
[1750565309248,0.5911735,135.44,135.43,30.43033301]
[1750565309956,0.5911735,135.44,135.43,4.43033301]
[1750565310163,11.606792,135.44,135.43,4.43033301]
[1750565310535,0.5911735,135.44,135.43,4.43033301]
[1750565311435,0.5911735,135.44,135.42,4.43066016]
[1750565313954,0.5911735,135.44,135.41,15.50845579]
[1750565314147,0.5911735,135.44,135.42,11.0156185]
[1750565314458,0.5911735,135.44,135.43,37.0156185]
[1750565315543,0.5911735,135.44,135.43,26.0]
[1750565316349,6.10509277,135.44,135.43,30.43033301]
[1750565316752,0.5911735,135.44,135.43,30.43033301]
[1750565317660,0.5911735,135.44,135.43,41.44595151]
[1750565318650,0.5911735,135.44,135.43,15.44595151]
[1750565319973,8.1667,135.43,135.38,15.51113816]
[1750565320175,16.67397271,135.42,135.38,15.51113816]
[1750565320467,11.15778007,135.42,135.39,26.0]
[1750565320962,8.1667,135.43,135.39,37.0156185]
[1750565321265,5.51518574,135.42,135.39,37.0156185]
[1750565321565,19.1823185,135.43,135.39,37.0156185]
[1750565321870,19.1823185,135.43,135.4,4.43131462]
[1750565321871,8.1667,135.43,135.4,4.43131462]
[1750565323269,8.1667,135.43,135.4,15.50960117]
[1750565323579,1.5567,135.43,135.4,26.52521967]
[1750565328047,1.5567,135.43,135.4,15.50960117]
[1750565328243,1.5567,135.43,135.41,11.0156185]
[1750565328966,1.5567,135.43,135.4,26.52521967]
[1750565329547,1.5567,135.43,135.4,15.50960117]
[1750565330368,1.5567,135.43,135.4,4.43131462]
[1750565330577,12.5723185,135.43,135.41,26.0]
[1750565331771,0.5911735,135.44,135.42,26.0]
[1750565331991,0.5911735,135.44,135.43,37.0156185]
[1750565332166,0.5911735,135.44,135.43,34.09560037]
[1750565332852,0.5911735,135.44,135.43,45.11121887]
[1750565334373,5.50544334,135.51,135.47,44.64964886]
[1750565334570,7.03120937,135.52,135.5,37.0156185]
[1750565334747,1.5261,135.52,135.5,37.0156185]
[1750565335570,7.03066835,135.52,135.51,4.42771751]
[1750565336357,1.5261,135.52,135.51,4.42771751]
[1750565336687,7.02980431,135.52,135.51,4.42771751]
[1750565338289,1.5261,135.52,135.51,4.42771751]
[1750565339184,1.5839,135.56,135.54,26.0]
[1750565339685,5.49834288,135.55,135.54,30.42661982]
[1750565341263,5.49834288,135.55,135.54,41.44223832]
[1750565341482,1.5839,135.56,135.54,41.44223832]
[1750565342567,1.5839,135.56,135.55,26.0]
[1750565343684,1.5839,135.56,135.55,30.42641091]
[1750565345779,1.72606157,135.56,135.53,11.0156185]
[1750565345987,0.14216157,135.53,135.51,4.42771751]
[1750565346291,6.0451,135.54,135.52,26.0]
[1750565346474,30.6,135.53,135.52,26.0]
[1750565347775,30.6,135.53,135.52,30.42739079]
[1750565347977,1.5839,135.56,135.52,52.51148626]
[1750565348215,1.5839,135.56,135.53,26.0]
[1750565348695,12.5995185,135.56,135.53,26.0]
[1750565349567,43.1995185,135.56,135.53,26.0]
[1750565349767,43.1995185,135.56,135.54,4.42673749]
[1750565350695,32.1839,135.56,135.54,4.42673749]
[1750565350868,43.1995185,135.56,135.54,4.42673749]
[1750565351065,32.1839,135.56,135.54,4.42673749]
[1750565351793,32.1839,135.56,135.54,15.44235599]
[1750565351984,13.1837,135.58,135.54,26.50919972]
[1750565352191,6.74,135.58,135.54,15.49358122]
[1750565352375,6.74,135.58,135.54,26.50919972]
[1750565353066,6.52645099,135.59,135.56,11.0156185]
[1750565353269,4.93635099,135.59,135.57,26.0]
[1750565353500,4.93635099,135.59,135.58,11.0156185]
[1750565353871,4.93635099,135.59,135.58,15.44104997]
[1750565354070,4.93635099,135.59,135.58,41.44104997]
[1750565354266,4.93635099,135.59,135.58,30.42543147]
[1750565354485,4.93635099,135.59,135.58,41.44104997]
[1750565354875,4.93635099,135.59,135.58,30.42543147]
[1750565355069,4.93635099,135.59,135.58,41.44104997]
[1750565355895,4.93635099,135.59,135.58,30.42543147]
[1750565356272,4.93635099,135.59,135.58,41.44104997]
[1750565357699,4.93635099,135.59,135.58,30.42543147]
[1750565358001,4.93635099,135.59,135.58,41.44104997]
[1750565360076,4.93635099,135.59,135.58,30.42543147]
[1750565360298,15.43785996,135.68,135.58,30.42543147]
[1750565360299,7.44629145,135.7,135.69,26.0]
[1750565360499,1.5911735,135.71,135.7,18.64964886]
[1750565360701,1.6633,135.77,135.73,26.0]
[1750565360906,1.6633,135.82,135.76,11.0156185]
[1750565361087,1.6633,135.82,135.8,11.0156185]
[1750565361305,1.6633,135.82,135.8,37.0156185]
[1750565361606,10.996195,135.83,135.82,26.0]
[1750565361607,4.882695,135.83,135.82,26.0]
[1750565361785,4.882695,135.83,135.82,37.0156185]
[1750565361982,4.882695,135.83,135.82,41.43323004]
[1750565362314,4.882695,135.83,135.82,60.0828789]
[1750565362519,4.882695,135.83,135.82,87.84342218]
[1750565362893,4.882695,135.83,135.82,95.0444079]
[1750565363614,4.882695,135.83,135.82,63.9244079]
[1750565364301,4.882695,135.83,135.82,53.05815482]
[1750565364513,4.882695,135.83,135.82,45.27475904]
[1750565365713,4.882695,135.83,135.82,27.05815482]
[1750565366007,4.882695,135.83,135.82,45.27475904]
[1750565366212,4.882695,135.83,135.82,48.63421576]
[1750565367194,4.882695,135.83,135.82,67.28386462]
[1750565367697,4.882695,135.83,135.82,98.36386462]
[1750565368106,4.882695,135.83,135.82,67.28386462]
[1750565368920,4.882695,135.83,135.82,48.63421576]
[1750565369809,4.882695,135.83,135.82,30.41761154]
[1750565370215,4.882695,135.83,135.82,22.63421576]
[1750565370717,4.882695,135.83,135.81,4.41791152]
[1750565370901,23.09929922,135.83,135.81,4.41791152]
[1750565371100,4.882695,135.83,135.81,4.41791152]
[1750565371815,23.09929922,135.83,135.81,4.41791152]
[1750565372021,4.882695,135.83,135.81,4.41791152]
[1750565372222,23.09929922,135.83,135.81,4.41791152]
[1750565372415,4.882695,135.83,135.81,4.41791152]
[1750565372817,18.35876579,135.82,135.76,29.26497341]
[1750565373135,4.882695,135.83,135.76,29.26497341]
[1750565373136,4.882695,135.83,135.77,4.41923841]
[1750565373420,18.35876579,135.82,135.77,22.63584263]
[1750565374008,18.35876579,135.82,135.77,33.68393867]
[1750565374216,4.882695,135.83,135.77,15.46733445]
[1750565374502,23.09929922,135.83,135.78,18.21660422]
[1750565375021,23.09929922,135.83,135.81,26.0]
[1750565375229,4.882695,135.83,135.81,26.0]
[1750565375920,23.09929922,135.83,135.81,30.41762358]
[1750565376119,23.09929922,135.83,135.82,26.0]
[1750565376335,23.24146079,135.83,135.82,26.0]
[1750565376627,4.882695,135.83,135.82,26.0]
[1750565377825,4.882695,135.83,135.82,30.41761154]
[1750565382132,23.09929922,135.83,135.82,30.41761154]
[1750565383317,4.882695,135.83,135.82,30.41761154]
[1750565383903,4.882695,135.83,135.82,48.63421576]
[1750565384526,4.882695,135.83,135.82,30.41761154]
[1750565385810,4.882695,135.83,135.82,48.63421576]
[1750565386335,4.882695,135.83,135.82,67.28386462]
[1750565390306,4.882695,135.83,135.82,79.12690946]
[1750565392821,4.882695,135.83,135.82,110.14690946]
[1750565393031,1.5098,135.93,135.86,26.0]
[1750565393237,6.88779865,135.93,135.91,18.21660422]
[1750565393438,6.92579865,135.95,135.92,18.21660422]
[1750565393638,1.5478,135.95,135.94,26.0]
[1750565393811,6.42780385,135.95,135.94,26.0]
[1750565394012,6.42780385,135.95,135.9,26.0]
[1750565394268,5.37892526,135.97,135.94,44.21660422]
[1750565394530,1.5911735,135.98,135.97,30.4127381]
[1750565394953,1.5911735,135.98,135.97,4.4127381]
[1750565395436,1.5911735,135.98,135.97,70.87147906]
[1750565395650,1.5911735,135.98,135.97,89.7345239]
[1750565396011,4.82903902,136.05,136.04,26.0]
[1750565396406,4.82903902,136.05,136.04,48.62707172]
[1750565396606,4.32903902,136.05,136.04,48.62707172]
[1750565397032,4.32903902,136.05,136.04,67.27672058]
[1750565398213,4.32903902,136.05,136.04,79.11976542]
[1750565398845,1.5478,136.11,136.05,18.64964886]
[1750565399018,1.5478,136.11,136.1,18.21660422]
[1750565399346,1.5478,136.11,136.09,18.21660422]
[1750565399927,0.14216157,136.1,136.09,26.0]
[1750565400148,23.72890884,136.1,136.09,26.0]
[1750565400450,5.37014305,136.14,136.1,4.40852314]
[1750565400655,5.37014305,136.13,136.11,26.0]
[1750565400863,16.14018403,136.21,136.14,26.0]
[1750565400864,5.37014305,136.15,136.14,26.0]
[1750565401015,25.23660422,136.21,136.14,26.0]
[1750565401016,5.37311851,136.19,136.16,26.0]
[1750565401215,1.5911735,136.24,136.2,26.0]
[1750565401422,1.5911735,136.24,136.22,44.21660422]
[1750565401641,1.5911735,136.24,136.23,44.21660422]
[1750565401919,1.5911735,136.24,136.23,18.21660422]
[1750565402348,1.5911735,136.24,136.23,21.82122461]
[1750565402652,1.5911735,136.24,136.23,26.22554083]
[1750565403028,1.5911735,136.24,136.23,8.00893661]
[1750565403256,1.5911735,136.24,136.23,4.40431622]
[1750565403821,19.80777772,136.24,136.23,4.40431622]
[1750565404017,19.80777772,136.24,136.23,30.40431622]
[1750565404247,19.80777772,136.24,136.18,4.40593332]
[1750565404436,1.5911735,136.24,136.14,11.01782298]
[1750565404760,0.14216157,136.22,136.14,11.01782298]
[1750565404949,13.44276322,136.23,136.12,4.4078754]
[1750565404950,18.21660422,136.17,136.12,4.4078754]
[1750565405132,8.0659,136.23,136.12,4.4078754]
[1750565405133,18.21660422,136.2,136.12,4.4078754]
[1750565405321,18.35876579,136.2,136.12,4.4078754]
[1750565405531,0.14216157,136.2,136.12,4.4078754]
[1750565405873,18.35876579,136.2,136.12,4.4078754]
[1750565406028,18.21660422,136.14,136.12,4.4078754]
[1750565406727,18.21660422,136.14,136.1,4.40852314]
[1750565406933,25.28311844,136.15,136.1,15.429831]
[1750565407156,25.28311844,136.14,136.13,26.0]
[1750565407670,25.28311844,136.14,136.1,15.429831]
[1750565407829,5.37686322,136.17,136.13,26.0]
[1750565408151,25.28311844,136.14,136.13,26.0]
[1750565408539,25.28311844,136.14,136.05,40.70019182]
[1750565408540,25.28311844,136.14,136.08,25.28311844]
[1750565408745,0.14216157,136.16,136.08,4.40917107]
[1750565408946,25.28311844,136.09,136.05,4.41014332]
[1750565409135,25.28311844,136.08,136.05,4.41014332]
[1750565409556,1.5418,136.11,136.07,26.0]
[1750565409758,25.28311844,136.08,136.05,4.41014332]
[1750565409961,1.5418,136.11,136.05,15.43550164]
[1750565410165,25.28311844,136.09,136.08,26.0]
[1750565410536,25.28311844,136.09,136.08,30.40917107]
[1750565411367,26.82491844,136.11,136.08,30.40917107]
[1750565411662,26.82491844,136.11,136.1,26.0]
[1750565411839,1.5418,136.11,136.1,26.0]
[1750565412038,26.82491844,136.11,136.1,26.0]
[1750565412263,26.82491844,136.11,136.09,26.0]
[1750565412572,26.82491844,136.11,136.1,4.40852314]
[1750565412777,32.34311844,136.12,136.1,30.40852314]
[1750565413079,25.28311844,136.11,136.07,26.0]
[1750565413282,7.06,136.12,136.08,26.0]
[1750565413464,25.28311844,136.09,136.08,26.0]
[1750565414683,25.28311844,136.09,136.08,30.40917107]
[1750565415748,7.06,136.12,136.08,30.40917107]
[1750565415956,7.06,136.12,136.08,4.40917107]
[1750565416148,25.28311844,136.11,136.08,15.43209875]
[1750565416658,25.28311844,136.11,136.05,48.05013469]
[1750565416659,25.28311844,136.14,136.12,4.4078754]
[1750565416859,25.28311844,136.14,136.12,30.4078754]
[1750565417177,25.28311844,136.16,136.13,26.0]
[1750565417365,25.28311844,136.15,136.14,26.0]
[1750565418774,25.28311844,136.15,136.14,30.40722785]
[1750565419771,25.28311844,136.15,136.1,4.40852314]
[1750565419965,8.6018,136.17,136.12,26.0]
[1750565420169,25.28311844,136.13,136.12,26.0]
[1750565420749,25.28311844,136.13,136.06,15.43397636]
[1750565421064,31.56,136.14,136.09,26.0]
[1750565421480,0.14216157,136.13,136.06,4.40981919]
[1750565421785,25.28311844,136.08,136.06,30.40981919]
[1750565422347,25.28311844,136.08,136.06,4.40981919]
[1750565422576,25.28311844,136.08,136.06,15.43436718]
[1750565422758,25.28311844,136.08,136.06,41.43436718]
[1750565423375,25.28311844,136.1,136.09,26.0]
[1750565423968,25.28311844,136.1,136.08,26.0]
[1750565424473,1.5418,136.17,136.09,26.0]
[1750565424673,25.28311844,136.12,136.09,26.0]
[1750565424976,25.28311844,136.13,136.1,4.40852314]
[1750565425147,5.35197414,136.15,136.12,26.0]
[1750565425350,37.07413571,136.16,136.12,26.0]
[1750565425767,5.49413571,136.15,136.1,26.0]
[1750565426075,0.14216157,136.13,136.1,26.0]
[1750565426279,5.49413571,136.13,136.1,26.0]
[1750565426455,25.28311844,136.11,136.1,26.0]
[1750565427052,5.35197414,136.13,136.11,4.40819925]
[1750565427363,30.63509258,136.12,136.11,4.40819925]
[1750565427551,25.28311844,136.12,136.11,4.40819925]
[1750565427951,30.63509258,136.12,136.11,4.40819925]
[1750565428173,25.28311844,136.12,136.11,4.40819925]
[1750565428676,5.35197414,136.15,136.13,26.0]
[1750565428976,23.50577531,136.14,136.13,26.0]
[1750565429174,18.15380117,136.14,136.13,26.0]
[1750565429476,30.398363,136.14,136.11,26.0]
[1750565429672,9.2623456,136.16,136.12,26.0]
[1750565429673,5.35197414,136.13,136.12,26.0]
[1750565429879,18.15380117,136.13,136.12,26.0]
[1750565430077,5.35197414,136.14,136.12,26.0]
[1750565430282,18.15380117,136.15,136.13,4.4075516]
[1750565430458,5.38301289,136.14,136.13,4.4075516]
[1750565431771,30.66670531,136.14,136.13,4.4075516]
[1750565434160,5.38875172,136.14,136.13,4.4075516]
[1750565437384,37.46354938,136.14,136.13,4.4075516]
[1750565437595,30.66670531,136.14,136.12,37.01957632]
[1750565437771,5.38875172,136.13,136.12,37.01957632]
[1750565438659,5.38875172,136.13,136.12,41.42745172]
[1750565439558,30.66670531,136.13,136.12,41.42745172]
[1750565440079,30.66670531,136.13,136.1,4.40823077]
[1750565440080,37.46367582,136.13,136.1,4.40823077]
[1750565440384,37.46367582,136.13,136.11,26.0]
[1750565440385,5.38875172,136.12,136.11,26.0]
[1750565441288,5.38875172,136.12,136.11,30.40819925]
[1750565441499,30.66670531,136.12,136.11,30.40819925]
[1750565442066,5.38875172,136.12,136.11,4.40819925]
[1750565442384,5.38875172,136.12,136.11,30.40819925]
[1750565442682,30.66670531,136.12,136.06,15.43357654]
[1750565442881,25.27795359,136.07,136.06,4.40981919]
[1750565443095,30.66670531,136.07,136.06,30.40981919]
[1750565443312,30.66670531,136.07,136.0,11.02862431]
[1750565443475,25.27795359,136.04,136.0,11.02862431]
[1750565443680,6.79697051,136.08,136.03,26.0]
[1750565443880,25.27795359,136.05,136.03,26.0]
[1750565444091,5.46571089,136.04,136.03,26.0]
[1750565444280,6.79697051,136.09,136.03,26.0]
[1750565444487,5.46441133,136.08,136.05,26.0]
[1750565444678,25.27795359,136.06,136.05,26.0]
[1750565444885,30.74236492,136.06,136.05,26.0]
[1750565445089,30.74236492,136.06,136.03,26.0]
[1750565445286,30.74236492,136.05,136.03,26.0]
[1750565445615,25.27795359,136.06,136.05,26.0]
[1750565445784,30.74172828,136.06,136.05,26.0]
[1750565446588,30.74172828,136.06,136.04,15.43663627]
[1750565446813,25.27795359,136.06,136.04,41.43663627]
[1750565448902,25.27795359,136.06,136.04,15.43663627]
[1750565449779,25.27795359,136.06,136.04,11.02616877]
[1750565450181,25.27795359,136.06,136.04,37.02616877]
[1750565451009,18.17229983,136.06,136.04,37.02616877]
[1750565451408,18.17229983,136.05,136.04,26.0]
[1750565451585,18.17229983,136.05,135.99,15.44227618]
[1750565451794,18.17229983,136.0,135.99,4.41208912]
[1750565452085,5.48338548,136.03,135.99,4.41208912]
[1750565452295,18.17229983,136.03,136.02,26.0]
[1750565452702,23.65330274,136.03,136.02,26.0]
[1750565452893,5.48100291,136.03,136.02,26.0]
[1750565453092,18.17229983,136.03,136.02,26.0]
[1750565453498,18.17229983,136.03,135.99,15.44231193]
[1750565453697,6.98451012,136.04,136.0,26.0]
[1750565453899,6.98451012,136.04,136.01,4.41144033]
[1750565454214,1.5056,136.04,136.01,4.41144033]
[1750565454587,6.98280611,136.04,136.01,4.41144033]
[1750565454795,18.17229983,136.02,136.01,30.41144033]
[1750565455213,6.98280611,136.04,136.01,30.41144033]
[1750565455402,18.17229983,136.02,136.01,30.41144033]
[1750565456594,18.17229983,136.02,135.99,26.0]
[1750565456800,18.17229983,136.0,135.99,26.0]
[1750565456991,18.17229983,136.0,135.97,41.44458335]
[1750565457222,5.47720611,136.03,135.97,30.4127381]
[1750565457223,18.17229983,135.98,135.97,30.4127381]
[1750565458420,18.17229983,135.98,135.95,4.41338727]
[1750565458623,18.17229983,135.96,135.92,4.41436138]
[1750565458798,18.17229983,135.93,135.92,4.41436138]
[1750565459516,1.6337,135.96,135.92,4.41436138]
[1750565459517,18.17229983,135.94,135.92,4.41436138]
[1750565459692,18.17229983,135.97,135.94,26.0]
[1750565459892,18.17229983,135.96,135.94,26.0]
[1750565460093,18.17229983,135.97,135.94,26.0]
[1750565460404,1.5529,136.0,135.98,26.0]
[1750565460717,18.17229983,135.99,135.98,26.0]
[1750565462304,18.17229983,135.99,135.92,18.17229983]
[1750565462505,18.17229983,135.96,135.94,26.0]
[1750565462705,18.17229983,135.96,135.95,26.0]
[1750565463523,1.5529,136.0,135.95,26.0]
[1750565463524,18.17229983,135.97,135.95,26.0]
[1750565464400,1.5529,136.0,135.96,4.41306266]
[1750565464612,18.17229983,136.02,136.0,26.0]
[1750565465209,18.17229983,136.01,136.0,26.0]
[1750565465414,18.17229983,136.02,136.0,26.0]
[1750565465721,8.047,136.05,136.01,26.0]
[1750565466111,18.17229983,136.04,136.01,26.0]
[1750565466310,18.17229983,136.04,136.03,4.41079173]
[1750565468315,1.5529,136.05,136.03,4.41079173]
[1750565468509,18.17229983,136.04,136.01,11.02840618]
[1750565468723,18.17229983,136.03,136.01,11.02840618]
[1750565468921,38.66,136.08,136.01,11.02840618]
[1750565469137,18.17229983,136.03,136.01,11.02840618]
[1750565469438,38.80216157,136.08,136.01,11.02840618]
[1750565469732,18.17229983,136.03,136.01,11.02840618]
[1750565470105,18.17229983,136.02,136.01,11.02840618]
[1750565470607,18.17229983,136.02,136.01,15.43984651]
[1750565474636,18.17229983,136.04,136.01,15.43984651]
[1750565476922,18.17229983,136.03,136.01,15.43984651]
[1750565477709,7.26,136.08,136.01,15.43984651]
[1750565478046,18.17229983,136.05,136.01,33.61214634]
[1750565478206,18.17229983,136.06,136.01,33.61214634]
[1750565478820,18.17229983,136.06,136.01,55.66934801]
[1750565479238,18.17229983,136.05,136.01,37.49704818]
[1750565479847,18.17229983,136.04,136.01,15.43984651]
[1750565480526,7.26,136.08,136.01,15.43984651]
[1750565480732,18.17229983,136.05,136.01,15.43984651]
[1750565481922,18.17229983,136.03,136.01,15.43984651]
[1750565482329,18.17229983,136.02,136.01,4.41144033]
[1750565483045,18.17229983,136.02,136.0,30.41165056]
[1750565483259,18.17229983,136.01,135.95,15.44611691]
[1750565483462,18.17229983,135.98,135.95,15.44611691]
[1750565483755,18.17229983,135.98,135.97,26.0]
[1750565483929,1.6075,136.02,135.98,26.0]
[1750565484137,18.17229983,135.99,135.98,26.0]
[1750565484391,18.17229983,135.99,135.98,4.41241359]
[1750565484659,18.17229983,135.99,135.96,4.41306266]
[1750565484839,18.17229983,135.97,135.96,30.41306266]
[1750565486157,11.96162662,136.01,135.96,41.44571932]
[1750565486348,18.17229983,135.97,135.96,15.44571932]
[1750565488341,18.17229983,135.98,135.96,15.44571932]
[1750565489824,18.17229983,135.97,135.9,32.50884095]
[1750565490126,18.17229983,135.92,135.91,4.41468618]
[1750565490327,18.17229983,135.92,135.91,30.41468618]
[1750565490553,18.17229983,135.93,135.91,4.41468618]
[1750565490759,18.17229983,135.92,135.86,4.4163109]
[1750565491055,18.17229983,135.88,135.86,4.4163109]
[1750565491354,18.17229983,135.88,135.87,26.0]
[1750565491555,18.17229983,135.89,135.88,26.0]
[1750565491726,18.17229983,135.89,135.88,30.41566087]
[1750565494837,18.17229983,135.89,135.88,4.41566087]
[1750565496133,18.17229983,135.89,135.87,4.41598586]
[1750565496330,18.17229983,135.88,135.87,4.41598586]
[1750565496652,18.17229983,135.89,135.88,26.0]
[1750565496862,18.17229983,135.89,135.87,4.41598586]
[1750565497056,18.17229983,135.88,135.87,30.41598586]
[1750565497744,18.17229983,135.88,135.85,30.41663599]
[1750565497953,18.17229983,135.86,135.85,30.41663599]
[1750565498353,0.14216157,135.91,135.85,30.41663599]
[1750565498562,18.17229983,135.86,135.85,30.41663599]
[1750565498757,18.17229983,135.86,135.82,4.41761154]
[1750565499057,18.17229983,135.88,135.86,26.0]
[1750565499767,18.17229983,135.89,135.87,26.0]
[1750565500269,18.17229983,135.88,135.87,30.41598586]
[1750565500446,1.6224,135.91,135.87,4.41598586]
[1750565500647,18.17229983,135.89,135.87,41.45595053]
[1750565504171,18.17229983,135.91,135.87,41.45595053]
[1750565505181,18.17229983,135.89,135.87,41.45595053]
[1750565508149,18.17229983,135.9,135.87,41.45595053]
[1750565508745,18.17229983,135.91,135.87,41.45595053]
[1750565509047,1.6253,135.95,135.92,26.0]
[1750565509248,6.581,135.97,135.87,15.45595053]
[1750565509446,18.17229983,135.93,135.88,18.17229983]
[1750565509652,18.17229983,135.92,135.91,26.0]
[1750565510062,18.17229983,135.92,135.9,26.0]
[1750565510464,18.17229983,135.92,135.91,4.41468618]
[1750565511171,18.17229983,135.92,135.9,30.41495008]
[1750565511380,18.17229983,135.91,135.9,30.41495008]
[1750565512048,18.17229983,135.91,135.9,4.41495008]
[1750565512248,18.17229983,135.91,135.9,26.0]
[1750565512449,18.17229983,135.91,135.84,15.45871945]
[1750565512651,18.17229983,135.87,135.84,4.41696113]
[1750565512849,0.14216157,135.91,135.84,4.41696113]
[1750565512850,18.17229983,135.86,135.84,4.41696113]
[1750565513068,18.17229983,135.85,135.84,30.41696113]
[1750565513274,18.17229983,135.85,135.82,4.41729577]
[1750565513571,0.14216157,135.88,135.82,4.41729577]
[1750565513772,18.17229983,135.85,135.82,4.41729577]
[1750565514162,18.17229983,135.85,135.83,26.0]
[1750565514564,18.17229983,135.86,135.84,4.41696113]
[1750565514979,18.17229983,135.86,135.84,3.91696113]
[1750565515665,18.17229983,135.87,135.86,26.0]
[1750565516577,6.2522,135.9,135.84,14.95936395]
[1750565516781,18.17229983,135.87,135.84,14.95936395]
[1750565517560,18.17229983,135.89,135.84,29.21470265]
[1750565518073,18.17229983,135.89,135.85,18.17229983]
[1750565518675,18.17229983,135.89,135.87,26.0]
[1750565519582,18.17229983,135.89,135.88,4.41566087]
[1750565520161,18.17229983,135.89,135.87,30.4159017]
[1750565520979,18.17229983,135.92,135.9,26.0]
[1750565521289,6.3122,135.93,135.9,26.0]
[1750565521492,18.17229983,135.92,135.9,26.0]
[1750565521699,18.17229983,135.94,135.91,4.41468618]
[1750565521981,25.33229983,135.95,135.91,4.41468618]
[1750565522191,25.33229983,135.95,135.91,15.45140165]
[1750565522659,18.17229983,135.94,135.91,15.45140165]
[1750565523964,18.17229983,135.94,135.91,4.41468618]
[1750565524162,5.4520688,135.96,135.95,26.0]
[1750565524365,5.4520688,135.96,135.93,18.17229983]
[1750565524366,18.17229983,135.98,135.96,26.0]
[1750565524576,1.646,136.0,135.96,26.0]
[1750565524770,1.646,136.0,135.98,26.0]
[1750565524997,18.17229983,135.99,135.98,26.0]
[1750565525681,18.17229983,136.01,136.0,4.4117647]
[1750565525886,25.27229983,136.03,136.0,4.4117647]
[1750565526091,7.1,136.03,136.02,26.0]
[1750565526259,25.27229983,136.03,136.02,26.0]
[1750565526896,5.45605178,136.04,136.03,26.0]
[1750565527188,18.17229983,136.05,136.03,26.0]
[1750565527400,5.45605178,136.04,136.03,26.0]
[1750565527577,18.17229983,136.05,136.03,26.0]
[1750565527779,18.17229983,136.05,136.04,4.4104675]
[1750565527983,23.62835161,136.05,136.04,4.4104675]
[1750565528185,5.45605178,136.07,136.04,4.4104675]
[1750565528369,18.17229983,136.05,136.04,4.4104675]
[1750565528564,23.62835161,136.05,136.04,4.4104675]
[1750565528765,18.17229983,136.05,136.04,4.4104675]
[1750565529593,5.45605178,136.07,136.04,4.4104675]
[1750565529779,18.17229983,136.05,136.03,4.41079173]
[1750565530290,18.17229983,136.05,136.0,18.17229983]
[1750565530291,23.62835161,136.04,136.0,4.4117647]
[1750565530480,5.45605178,136.06,136.02,18.17229983]
[1750565530659,18.17229983,136.06,136.04,26.0]
[1750565530863,23.62835161,136.06,136.04,26.0]
[1750565531091,18.17229983,136.06,136.04,26.0]
[1750565531389,18.17229983,136.07,136.04,26.0]
[1750565531592,18.17229983,136.06,136.04,26.0]
[1750565531791,18.17229983,136.06,136.05,4.41014332]
[1750565532376,18.17229983,136.06,136.05,30.41014332]
[1750565532796,7.1,136.08,136.05,30.41014332]
[1750565532973,18.17229983,136.06,136.05,30.41014332]
[1750565533372,12.55605178,136.08,136.05,30.41014332]
[1750565533574,25.27229983,136.08,136.05,4.41014332]
[1750565534388,25.27229983,136.08,136.05,15.43550164]
[1750565535394,7.1,136.08,136.05,15.43550164]
[1750565535572,18.17229983,136.1,136.09,26.0]
[1750565537177,18.17229983,136.1,136.05,15.43550164]
[1750565537386,5.43943979,136.12,136.08,30.409001]
[1750565537704,18.17229983,136.09,136.08,30.409001]
[1750565538292,18.17229983,136.09,136.03,18.64964886]
[1750565538503,18.17229983,136.07,136.06,26.0]
[1750565539679,18.17229983,136.07,136.06,30.40981919]
[1750565540097,18.17229983,136.07,136.06,26.0]
[1750565541394,18.17229983,136.07,136.03,4.41079173]
[1750565541580,18.17229983,136.04,136.01,4.41144033]
[1750565541799,18.17229983,136.02,135.97,4.4127381]
[1750565541985,18.17229983,135.99,135.97,4.4127381]
[1750565542176,31.06,136.03,135.99,26.0]
[1750565542705,18.17229983,136.0,135.97,4.4127381]
[1750565543000,10.91532816,135.99,135.98,26.0]
[1750565543299,10.91532816,136.02,136.0,26.0]
[1750565543505,10.91532816,136.01,136.0,26.0]
[1750565543670,10.91532816,136.03,136.0,41.44117646]
[1750565544698,10.91532816,136.04,136.0,41.44117646]
[1750565544891,18.17998198,136.04,136.0,41.44117646]
[1750565545091,18.17998198,136.03,136.0,41.44117646]
[1750565545400,18.17998198,136.01,136.0,26.0]
[1750565545714,18.17998198,136.01,135.97,15.44384638]
[1750565545921,18.17998198,135.99,135.97,4.4127381]
[1750565546302,18.17998198,136.0,135.99,26.0]
[1750565547095,18.17998198,136.0,135.97,4.4127381]
[1750565547293,18.17998198,135.99,135.98,26.0]
[1750565548886,18.17998198,135.99,135.98,30.41241359]
[1750565549700,31.02,136.03,135.99,26.0]